Cogmind - Beta 9.4 @@@ ROGUE MODE // 2020.02.16 @ 22:34:09 // Winter2019/RPGLIKE Player: Exeight Result: Self-destructed Performance ------------- Evolutions (1) 500 Regions Visited (4) 800 Robots Destroyed (62) 310 Value Destroyed (1445) 1445 Prototype IDs (5) 100 Alien Tech Used (0) 0 Bonus (82) 82 TOTAL SCORE: 3237 Bonus ------- High Alert Combat Kills 77 Follower Combat Kills 35 Friendly Fire -30 Cogmind --------- Core Integrity 42/600 Matter 298/300 Energy 280/280 System Corruption 4% Temperature Cool (20) Movement Treading (145) Location -9/Mines Parts ------- > --- POWER (1) -------- Cooled Ion Engine > --- PROPULSION (2) --- Advanced Treads Advanced Treads > --- UTILITY (4) ------ Improved Heat Sink Improved Heat Sink Cooling System Targeting Computer > --- WEAPON (5) ------- Beamcaster Improved Assault Rifle Improved Assault Rifle Improved Assault Rifle Improved Assault Rifle > --- INVENTORY (0) ---- (None) Peak State ------------ > --- POWER ------------ Cooled Ion Engine > --- PROPULSION ------- Advanced Treads Advanced Treads > --- UTILITY ---------- Improved Heat Sink Improved Heat Sink Cooling System Targeting Computer > --- WEAPON ----------- Beamcaster Improved Assault Rifle Improved Assault Rifle Improved Assault Rifle Improved Assault Rifle > --- INVENTORY -------- (None) [Rating: 35] Favorites ----------- Power Ion Engine Engine Ion Engine Power Core Light Nuclear Core Propulsion Light Treads Treads Light Treads Utility Improved Heat Sink Device Improved Heat Sink Processor Targeting Computer Weapon Light Assault Rifle Energy Gun Beamcaster Energy Cannon Advanced Beam Cannon Ballistic Gun Light Assault Rifle Build | -11 -10 -10 -9 -9 ------- Run | Scr Mat Min Mat Min Slots Evolved 8 | 4 . 2 2 . Power . | . . . . . Propulsion 1 | 1 . . . . Utility 3 | . . 2 1 . Weapon 4 | 3 . . 1 . Parts Attached 33 | 6 5 4 18 . Power 3 | 1 . . 2 . Engine 2 | 1 . . 1 . Core 1 | . . . 1 . Reactor . | . . . . . Propulsion 4 | 2 . . 2 . Treads 4 | 2 . . 2 . Leg . | . . . . . Wheel . | . . . . . Hover . | . . . . . Flight . | . . . . . Utility 6 | . 2 2 2 . Device 5 | . 1 2 2 . Storage . | . . . . . Processor 1 | . 1 . . . Hackware . | . . . . . Protection . | . . . . . Artifact . | . . . . . Weapon 20 | 3 3 2 12 . Energy Gun 6 | 2 1 1 2 . Energy Cannon 1 | . . . 1 . Ballistic Gun 13 | 1 2 1 9 . Ballistic Cannon . | . . . . . Launcher . | . . . . . Special Weapon . | . . . . . Impact Weapon . | . . . . . Slashing Weapon . | . . . . . Piercing Weapon . | . . . . . Special Melee Weapon . | . . . . . Unidentified Prototypes 5 | . . . 5 . Parts Lost . | . . . . . Power . | . . . . . Propulsion . | . . . . . Utility . | . . . . . Weapon . | . . . . . Highest Loss Streak . | . . . . . Average Slot Usage (%) 98 | . 94 99 99 100 Engine 9 | . 12 11 6 8 Treads 20 | . 25 24 17 16 Device 14 | . 1 1 23 25 Processor 8 | . 6 11 8 8 Energy Gun 11 | . 23 5 11 8 Energy Cannon 1 | . . . 3 . Ballistic Gun 30 | . 26 43 26 33 Naked Turns . | . . . . . Heaviest Build 29 | 10 12 15 29 29 Greatest Support 44 | 40 40 40 44 44 Greatest Overweight (x) 1 | . . . 1 . Average Overweight (x) . | . . . . . Largest Inventory Capacity . | . . . . . Average Capacity . | . . . . . Most Carried . | . . . . . Average Carried . | . . . . . Final Capacity . | . . . . . Final Carried . | . . . . . Class Distribution -------------------- 56% | Gunner 43% | Scavenger-Gunner Dominant Class ---------------- Gunner | -10/Materials Gunner | -10/Mines Scavenger-Gunner | -9/Materials Gunner | -9/Mines Resources | -11 -10 -10 -9 -9 ----------- Run | Scr Mat Min Mat Min Matter Collected 1094 | 260 70 75 601 88 Remotely . | . . . . . Salvage Created 2055 | . 437 87 1484 47 Parts 149 | . 24 7 107 11 Haulers Intercepted 5 | . 1 . 4 . Recyclers Shooed 1 | . . 1 . . Parts Field Recycled . | . . . . . Retrieved Matter . | . . . . . Parts Self-Destructed . | . . . . . Prevented . | . . . . . Kills | -11 -10 -10 -9 -9 ------- Run | Scr Mat Min Mat Min Combat Hostiles Destroyed 43 | . 6 4 29 4 Guns 40 | . 5 4 27 4 Cannons 2 | . . . 2 . AOE 1 | . 1 . . . Classes Destroyed 10 | . 4 1 4 1 Worker 4 | . 2 . 2 . Builder 1 | . . . 1 . Hauler 5 | . 1 . 4 . Operator 2 | . . . 2 . Watcher 7 | . 2 . 5 . Swarmer 15 | . . 4 10 1 Grunt 19 | . 6 . 11 2 Brawler 1 | . . . 1 . Sentry 7 | . . . 7 . Assembled 1 | . . . . 1 Best Kill Streak 9 | . 3 3 9 2 Combat Bots Only 7 | . 2 3 7 2 Max Kills in Single Turn 2 | . 2 1 2 1 Gunslinging . | . . . . . Exploded 1 | . 1 . . . Melee . | . . . . . Uniques/NPCs Destroyed . | . . . . . Combat | -11 -10 -10 -9 -9 -------- Run | Scr Mat Min Mat Min Damage Taken 1550 | . 161 34 599 756 Core 1226 | . 127 28 467 604 Absorbed by Shields . | . . . . . Redirected to Core 1054 | . 115 19 405 515 Core Remaining (%) 100 | 100 . 100 . . Volleys Fired 100 | . 16 7 73 4 Largest 5 | . 4 4 5 5 Hottest 245 | . 120 100 245 167 Shots Fired 446 | . 64 28 335 19 Gun 424 | . 64 28 313 19 Cannon 22 | . . . 22 . Launcher . | . . . . . Special . | . . . . . Kinetic 290 | . 33 24 218 15 Thermal 121 | . . . 117 4 Explosive . | . . . . . Electromagnetic 35 | . 31 4 . . Robot Hit Streak 20 | . 8 3 20 4 Robot Miss Streak 4 | . 4 3 3 1 Penetration Max . | . . . . . Secondary Targets 4 | . 1 . 2 1 Max Gunslinging Chain 1 | . 1 . 1 1 Shots Hit Robots 220 | . 35 11 166 8 Core Hits 93 | . 21 5 62 5 Critical Hits 4 | . . . 4 . Critical Kills 2 | . . . 2 . Critical Parts Destroyed 1 | . . . 1 . Melee Attacks . | . . . . . Impact . | . . . . . Slashing . | . . . . . Piercing . | . . . . . Sneak Attacks . | . . . . . Combat Hostiles . | . . . . . Follow-up Attacks . | . . . . . Damage Inflicted 2967 | . 438 125 2253 151 Guns 2711 | . 371 125 2064 151 Cannons 144 | . . . 144 . Explosions 112 | . 67 . 45 . Melee . | . . . . . Ramming . | . . . . . Kinetic 1067 | . 106 91 782 88 Thermal 1556 | . 67 . 1426 63 Explosive . | . . . . . Electromagnetic 344 | . 265 34 45 . Impact . | . . . . . Slashing . | . . . . . Piercing . | . . . . . Highest Corruption 4 | . . . 4 4 Average Corruption 2 | . . . 2 4 Corruption Purged . | . . . . . Effects 35 | . . . 26 9 Message Errors 6 | . . . 4 2 Matter Fused 4 | . . . 1 3 Heat Flow Errors 6 | . . . 5 1 Energy Discharges 5 | . . . 4 1 Data Loss (minor) 5 | . . . 5 . Targeting Errors 6 | . . . 5 1 Weapon Failures 3 | . . . 2 1 Overload Shots . | . . . . . Overflow Damage . | . . . . . Projectiles . | . . . . . Explosions . | . . . . . Melee . | . . . . . Knockbacks . | . . . . . Impact . | . . . . . Kinetic . | . . . . . Secondary . | . . . . . Self-Inflicted Damage 62 | . . . 62 . Shots 2 | . . . 2 . Rammed . | . . . . . Targets Rammed . | . . . . . Kicked . | . . . . . Crushed . | . . . . . Highest Temperature 249 | . 249 117 213 137 Average Temperature 57 | . 73 41 52 57 Received Heat Transfer 407 | . 90 . 93 224 Siege Activations . | . . . . . Robots Corrupted . | . . . . . Combat Hostiles . | . . . . . Parts Fried . | . . . . . Impact Corruptions . | . . . . . Robots Melted . | . . . . . Combat Hostiles . | . . . . . Parts Melted 1 | . . . 1 . Heat Transferred 2838 | . 100 . 2627 111 Parts Sabotaged . | . . . . . Parts Stolen . | . . . . . Parts Stripped . | . . . . . Power Chain Reactions 2 | . 2 . . . Missiles Intercepted . | . . . . . Alert | -11 -10 -10 -9 -9 ------- Run | Scr Mat Min Mat Min Peak Influence 531 | . 156 75 531 373 Average Influence 212 | . 60 43 341 238 Maximum Alert Level 2 | . . . 2 1 Low Security (%) 54 | 100 100 100 19 43 Level 1 22 | . . . 33 56 Level 2 23 | . . . 46 . Level 3 . | . . . . . Level 4 . | . . . . . Level 5 . | . . . . . High Security . | . . . . . Max Security . | . . . . . Squads Dispatched 2 | . . . 2 . Investigation . | . . . . . Extermination . | . . . . . Reinforcement 2 | . . . 2 . Assault . | . . . . . Garrison . | . . . . . Intercept . | . . . . . Construction Impeded . | . . . . . Haulers Reinforced . | . . . . . Stealth | -11 -10 -10 -9 -9 --------- Run | Scr Mat Min Mat Min Distress Signals 5 | . 1 . 4 . Communications Jammed . | . . . . . Distress Signals . | . . . . . Times Spotted 92 | . 11 7 47 27 Peak Tracking Total 15 | . 3 3 8 15 Tactical Retreats 6 | . 1 1 3 1 Traps | -11 -10 -10 -9 -9 ------- Run | Scr Mat Min Mat Min Traps Triggered 2 | . . . 2 . Indirectly . | . . . . . Trap Hack Attempts . | . . . . . Triggered . | . . . . . Disarmed . | . . . . . Reprogrammed . | . . . . . Reused . | . . . . . Traps Extracted . | . . . . . Installed . | . . . . . Triggered . | . . . . . Machines | -11 -10 -10 -9 -9 ---------- Run | Scr Mat Min Mat Min Machines Disabled 7 | . . . 6 1 Max in Single Turn 2 | . . . 2 . Machines Sabotaged . | . . . . . Garrisons Compromised . | . . . . . Overloaded Fab Kills . | . . . . . Fab Network Shutdowns . | . . . . . Hacking | -11 -10 -10 -9 -9 --------- Run | Scr Mat Min Mat Min Machines Accessed 1 | . . 1 . . Terminals 1 | . . 1 . . Fabricators . | . . . . . Repair Stations . | . . . . . Recycling Units . | . . . . . Scanalyzers . | . . . . . Garrison Access . | . . . . . Total Hacks 1 | . . 1 . . Successful 1 | . . 1 . . Failed . | . . . . . Catastrophic . | . . . . . Database Lockouts . | . . . . . Manual . | . . . . . Terminals 1 | . . 1 . . Fabricators . | . . . . . Repair Stations . | . . . . . Recycling Units . | . . . . . Scanalyzers . | . . . . . Garrison Access . | . . . . . Terminal Hacks 1 | . . 1 . . Zone Layout 1 | . . 1 . . Fabricator Hacks . | . . . . . Repair Station Hacks . | . . . . . Recycling Unit Hacks . | . . . . . Scanalyzer . | . . . . . Garrison Access Hacks . | . . . . . Unauthorized Hacks . | . . . . . Terminals . | . . . . . Fabricators . | . . . . . Repair Stations . | . . . . . Recycling Units . | . . . . . Scanalyzers . | . . . . . Garrison Access . | . . . . . Data Cores Recovered . | . . . . . Used . | . . . . . Hacking Detections . | . . . . . Full Trace Events . | . . . . . Feedback Events . | . . . . . Feedback Blocked . | . . . . . Robot Schematics Acquired . | . . . . . Robots Built . | . . . . . Matter . | . . . . . Time . | . . . . . Total Robot Build Rating . | . . . . . Part Schematics Acquired . | . . . . . Parts Built . | . . . . . Matter . | . . . . . Time . | . . . . . Total Part Build Rating . | . . . . . Parts Repaired . | . . . . . Time . | . . . . . Parts Recycled . | . . . . . Recycled Matter . | . . . . . Retrieved Matter . | . . . . . Retrieved Components . | . . . . . Parts Scanalyzed . | . . . . . Part Schematics Acquired . | . . . . . Parts Damaged . | . . . . . Bothacking | -11 -10 -10 -9 -9 ------------ Run | Scr Mat Min Mat Min Used RIF Installer . | . . . . . Robots Hacked . | . . . . . Non-combat . | . . . . . Combat . | . . . . . Robot Hacks Applied . | . . . . . Relay Couplers Released . | . . . . . Robots Rewired . | . . . . . Allies Hacked . | . . . . . Hacks Repelled . | . . . . . Allies | -11 -10 -10 -9 -9 -------- Run | Scr Mat Min Mat Min Total Allies 4 | . . 1 . 3 Largest Group 3 | . . 1 . 3 Highest-Rated Group 40 | . . 31 . 40 Highest-Rated Ally 31 | . . 31 . 16 Total Orders 1 | . . . . 1 FOLLOW 1 | . . . . 1 Ally Attacks 22 | . . 7 . 15 Total Damage 278 | . . 83 . 195 Kills 6 | . . 2 . 4 Allies Corrupted . | . . . . . Allies Melted . | . . . . . Intel | -11 -10 -10 -9 -9 ------- Run | Scr Mat Min Mat Min Robot Analysis Total . | . . . . . Derelict Logs Recovered 2 | . . 1 . 1 Drone Launches . | . . . . . Drone Recoveries . | . . . . . Exploration | -11 -10 -10 -9 -9 ------------- Run | Scr Mat Min Mat Min Turns Passed 4340 | 65 674 1029 2147 425 Spaces Moved 2402 | 37 374 612 1113 266 Core 2 | 2 . . . . Treads 2400 | 35 374 612 1113 266 Legs . | . . . . . Wheels . | . . . . . Hover . | . . . . . Flight . | . . . . . Fastest Speed 50 | 50 160 160 145 145 Average Speed 156 | 154 160 160 156 145 Slowest Speed 165 | 160 160 160 165 145 Overloaded Moves . | . . . . . Propulsion Burnouts . | . . . . . Robots Hopped . | . . . . . Cave-ins Triggered . | . . . . . Exploration Rate (%) 63 | 4 77 98 89 51 Regions Visited 4 Branch Regions 2 Pre-discovered Areas 1 | . . 1 . . Known Exits Taken . | . . . . . Unknown Exits Taken 4 | 1 1 1 1 . Scrap Searched 2 | . . 1 . 1 Spaces Dug . | . . . . . Terrain Destroyed 11 | . 11 . . . Melee . | . . . . . Projectile . | . . . . . AOE 11 | . 11 . . . Actions | -11 -10 -10 -9 -9 --------- Run | Scr Mat Min Mat Min Total 2750 | 42 415 647 1352 294 Wait 153 | . 12 17 109 15 Move 2398 | 36 373 611 1112 266 Hop . | . . . . . Pick Up . | . . . . . Fast Attach 33 | 6 5 4 18 . Attach . | . . . . . Detach . | . . . . . Swap . | . . . . . Drop 21 | . 3 2 16 . Fire 100 | . 16 7 73 4 Melee . | . . . . . Ram . | . . . . . Kick . | . . . . . Crush . | . . . . . Escape Stasis . | . . . . . Rewire . | . . . . . Trap . | . . . . . Miscellaneous 45 | . 6 6 24 9 Route ------- -11/Scrapyard -10/Materials (discovered 4 exits: *Mat x2 / *Min x2) -10/Mines (discovered 2 exits: *Mat x2) -9/Materials (discovered 4 exits: [*Mat x2] / *Min x2) -9/Mines (discovered 1 exit: [*Mat]) History --------- Turn | Location | Event 1 | -11/Scrapyard | Upgraded with Propulsion slot (x1) 1 | -11/Scrapyard | Upgraded with Weapon slot (x3) 18 | -11/Scrapyard | Discovered new exit (range 16) 66 | -11/Scrapyard | Entered Materials 240 | -10/Materials | Discovered new exit (range 14) 307 | -10/Materials | Build established: Gunner 430 | -10/Materials | Discovered new exit (range 6) 557 | -10/Materials | Discovered new exit (range 16) 701 | -10/Materials | Discovered new exit (range 12) 740 | -10/Materials | Entered Mines 1148 | -10/Mines | Reached level 2 1179 | -10/Mines | Discovered new exit (range 5) 1224 | -10/Mines | Assisted by bots powering up and referring to "LRC-V3" 1235 | -10/Mines | Learned location of Zion (-6) 1284 | -10/Mines | Discovered new exit (range 8) 1466 | -10/Mines | Received a Mining Laser from a helpful Derelict 1687 | -10/Mines | Upgraded with Utility slot (x2) 1769 | -10/Mines | Entered Materials 1771 | -9/Materials | Reached level 3 1825 | -9/Materials | Discovered new exit (range 15) 1976 | -9/Materials | Build established: Scavenger-Gunner 2134 | -9/Materials | Reached level 4 2257 | -9/Materials | Destroyed 7 combat bots 2281 | -9/Materials | Upgraded with Weapon slot (x1) 2385 | -9/Materials | Reached level 5 2495 | -9/Materials | Upgraded with Utility slot (x1) 2815 | -9/Materials | Discovered new exit (range 3) 2922 | -9/Materials | Discovered new exit (range 16) 3172 | -9/Materials | Reached level 6 3344 | -9/Materials | Discovered new exit (range 16) 3879 | -9/Materials | Build established: Gunner 3916 | -9/Materials | Entered Mines 3928 | -9/Mines | Met a Derelict bent on vengeance 3995 | -9/Mines | Discovered new exit (range 7) 4167 | -9/Mines | Deemed a non-threat by the Exiles lab entrance 4196 | -9/Mines | Assisted by bots powering up and referring to "LRC-V3" 4208 | -9/Mines | Reached level 7 4242 | -9/Mines | Learned Materials trap positions 4280 | -9/Mines | Assembled infested the area 4318 | -9/Mines | Core integrity fell below 50% 4332 | -9/Mines | Core integrity fell below 20% 4341 | -9/Mines | Self-destructed Last Messages --------------- as-80244 destroyed. Mercenary 2a destroyed. as-23806 destroyed. Switching to secondary target: D-53 Grenadier. as-44939 destroyed. as-13575 destroyed. Trooper 2a destroyed. as-69513 destroyed. as-17643 destroyed. as-03665 destroyed. as-10514 destroyed. as-48524 destroyed. D-53 Grenadier overheating. D-53 Grenadier heat damages Cmb. Airjet. D-53 Grenadier critical meltdown. D-53 Grenadier destroyed. The unstable cave ceiling collapses. System corrupted: Matter fused (-8). The unstable cave ceiling collapses. Acquired 18 matter. Map ----- +----------------------------------------------------+ | ##????????????????????????????????????? | | ###????? ???????????????????????????????? | | ##?????? #??????????????????????????????? | | ##??????? ##?????????????????????????????? | | ?????????# #####?????????????????????????? | | ????????## ##????????????????????????? | | ???????## #????????????????????????? | | ???????# ##???????????????????????? | | ???????# ##??????????????????????? | | ???????# #??????????????????????? | | ????????# ##?????????????????????? | | ??????### #?????????????????????? | | ????### #?????????????????????? | | ???## #??####???????????????? | | ???# #?## ##????#####?????? | | ???# #??# #???# ?????? | | ???## #### ##?# ????? | | ???# # ## ## ????? | | ???# a < #?????? | | ???# #??????? | | ???# ## #????????? | | ???# #### #### a #?????????? | | ##### %= #??## ##??# a ##?????????? | | """##%%! #???####???##= ###??????????? | | !* ???????????## ##????????????? | | ????????????## @ #?????????????? | | #?????????????# #????????????? | | % ?????????????## #????????????? | | #??????????????## ##????????????? | | #????????????????###?????????????? | | # ### ##?????????????????????????????????? | | # #?# #??????????????????????????????????? | | # #?# #??????????????????????????????????? | | #?# #??????????????????????????????????? | | #/%#?# #??????????????????????????????????? | | # #?# #?????????####?????????????????????? | | # #?#"#????? ????????????????????? | | # ###%## ????????????????????? | | # " #???????????????????????? | | ###### ### #???????????????????????? | | ?????# #???????? #???????????????????????? | | ?????# #??????????????????????????????????? | | ?????# #??????????????????????????????????? | | ????? #??????????????????????????????????? | | ?????###??????????????????????????????????? | | ??????????????????????????????????????????? | | ??????????????????????????????????????????? | | ??????????????????????????????????????????? | | ??????????????????????????????????????????? | | ??????????????????????????????????????????? | +----------------------------------------------------+ Best States ------------- Heat Dissipation 75 Energy Generation 14 Energy Capacity 280 Matter Stores 300 Matter Capacity 300 Sight Range 16 Terrain Scan Density 10 Evasion (%) 40 Targeting Accuracy 5 Recoil Reduction 2 Item Schematics ----------------- None Robot Schematics ------------------ None Fabricated ------------ Nothing Alien Tech Used ----------------- None Achievements -------------- None Challenges ------------ None RPGLIKE | -11 -10 -10 -9 -9 --------- Run | Scr Mat Min Mat Min Levels Raised 6 | . . 1 4 1 XP Earned 12326 | 3000 855 1216 5951 1304 XP Spent 7600 | 2900 . 1300 3400 . Upgrades 10 | 4 . 2 4 . Propulsion Slot 1 | 1 . . . . Utility Slot 3 | . . 2 1 . Weapon Slot 4 | 3 . . 1 . Ranged Accuracy 2 | . . . 2 . Protomatter Created 413 | . 76 . 275 62 Integrity Restored 844 | . 138 103 411 192 Core 668 | . 116 39 338 175 Parts 176 | . 22 64 73 17 Protomatter Decayed 247 | . 29 37 135 46 Game ------ Seed DispersionSpikedRifle Manual? 0 Play Time 00:30:38 Cumulative 55.7 hours Start 2020.02.16 @ 22:01:03 End 2020.02.16 @ 22:34:09 Sessions 1 Manual Loads 0 Difficulty Rogue Special Mode Winter2019/RPGLIKE Game No. 60 Rogue 60 Adventurer 0 Explorer 0 Win Type - Total 0 Types 0/0/0/0/0/0/0 Lore% 22 Gallery% 29 Achievement% 29 Wizard Run 0 Options --------- ASCII 0 Keyboard 0 Movement Mouse Keybinds 0 Fullscreen 0 Font 32/SmallcapsGlow Map View 76x50 Tactical HUD 0 Map Filters NONE Filters NONE Steam 1 RUN: 377ac246-617f-47a9-b745-57db99ff4bc8